fUSD/lending_fUSD_20241219
["ID","MTS","AMOUNT","RATE_DAILY","PERIOD"]
[346040130,1734651051039,-500.0,0.00024999,4]
[346040131,1734651051048,-999.97,0.00024999,4]
[346040132,1734651051058,-500.0,0.00024999,4]
[346040133,1734651051067,-500.0,0.00024999,4]
[346040134,1734651051076,-999.97,0.00024999,4]
[346040135,1734651051085,-500.0,0.00024999,4]
[346040136,1734651051095,-500.0,0.00024999,4]
[346040137,1734651051104,-999.97,0.00024999,4]
[346040138,1734651051113,-500.0,0.00024999,4]
[346040139,1734651051122,-498.55678077,0.00024999,4]
[346040140,1734651051132,-999.97,0.00024999,4]
[346040141,1734651051141,-500.0,0.00024999,4]
[346040142,1734651051151,-999.97,0.00024999,4]
[346040143,1734651051160,-500.0,0.00024999,4]
[346040144,1734651051169,-999.97,0.00024999,4]
[346040145,1734651051178,-500.0,0.00024999,4]
[346040146,1734651051187,-999.97,0.00024999,4]
[346040147,1734651051196,-381.06354274,0.00024999,4]
[346040148,1734651051206,-500.0,0.00024999,4]
[346040149,1734651051214,-999.97,0.00024999,4]
[346040150,1734651051224,-500.0,0.00024999,4]
[346040151,1734651051233,-500.0,0.00024999,4]
[346040152,1734651051242,-999.97,0.00024999,4]
[346040153,1734651051251,-1000.02,0.00024999,4]
[346040154,1734651051260,-500.0,0.00024999,4]
[346040155,1734651051270,-500.0,0.00024999,4]
[346040156,1734651051279,-500.0,0.00024999,4]
[346040157,1734651051288,-500.0,0.00024999,4]
[346040158,1734651051297,-500.0,0.00024999,4]
[346040159,1734651051307,-170.12,0.00024999,4]
[346040160,1734651051316,-500.0,0.00024999,4]
[346040161,1734651051325,-500.0,0.00024999,4]
[346040162,1734651051335,-500.0,0.00024999,4]
[346040163,1734651051345,-500.0,0.00024999,4]
[346040164,1734651051354,-500.0,0.00024999,4]
[346040165,1734651051363,-500.0,0.00024999,4]
[346040166,1734651051373,-500.0,0.00024999,4]
[346040167,1734651051382,-500.0,0.00024999,4]
[346040168,1734651051391,-500.0,0.00024999,4]
[346040169,1734651051400,-500.0,0.00024999,4]
[346040170,1734651051410,-500.0,0.00024999,4]
[346040171,1734651051419,-500.0,0.00024999,4]
[346040172,1734651051428,-331.59179373,0.00024999,4]
[346040173,1734651051437,-500.0,0.00024999,4]
[346040174,1734651051446,-500.0,0.00024999,4]
[346040175,1734651051455,-500.0,0.00024999,4]
[346040176,1734651051464,-500.0,0.00024999,4]
[346040177,1734651051473,-500.0,0.00024999,4]
[346040178,1734651051483,-848.68,0.00024999,4]
[346040179,1734651051492,-500.0,0.00024999,4]
[346040180,1734651051501,-848.68,0.00024999,4]
[346040181,1734651051510,-848.68,0.00024999,4]
[346040182,1734651051519,-500.0,0.00024999,4]
[346040183,1734651051528,-848.68,0.00024999,4]
[346040184,1734651051537,-500.0,0.00024999,4]
[346040185,1734651051546,-848.68,0.00024999,4]
[346040186,1734651051555,-500.0,0.00024999,4]
[346040187,1734651051564,-848.68,0.00024999,4]
[346040188,1734651051573,-411.37540841,0.00024999,4]
[346040189,1734651051582,-848.68,0.00024999,4]
[346040190,1734651051591,-848.68,0.00024999,4]
[346040191,1734651051600,-848.68,0.00024999,4]
[346040192,1734651051609,-848.68,0.00024999,4]
[346040193,1734651051618,-848.68,0.00024999,4]
[346040194,1734651051627,-848.68,0.00024999,4]
[346040195,1734651051636,-848.68,0.00024999,4]
[346040196,1734651051645,-848.68,0.00024999,4]
[346040197,1734651051654,-848.68,0.00024999,4]
[346040198,1734651051663,-848.68,0.00024999,4]
[346040199,1734651051672,-848.68,0.00024999,4]
[346040200,1734651051681,-848.68,0.00024999,4]
[346040201,1734651051691,-848.68,0.00024999,4]
[346040202,1734651051700,-1107.71,0.00024999,4]
[346040203,1734651051709,-848.68,0.00024999,4]
[346040204,1734651051718,-1107.71,0.00024999,4]
[346040205,1734651051727,-848.68,0.00024999,4]
[346040206,1734651051736,-1107.71,0.00024999,4]
[346040207,1734651051746,-848.68,0.00024999,4]
[346040208,1734651051755,-1107.71,0.00024999,4]
[346040209,1734651051764,-848.69740433,0.00024999,4]
[346040210,1734651051775,-1107.71,0.00024999,4]
[346040211,1734651051787,-1107.71,0.00024999,4]
[346040212,1734651051797,-1107.71,0.00024999,4]
[346040213,1734651051806,-1107.71,0.00024999,4]
[346040214,1734651051816,-1107.71,0.00024999,4]
[346040215,1734651051826,-1107.71,0.00024999,4]
[346040216,1734651051835,-1107.71,0.00024999,4]
[346040217,1734651051844,-1107.71,0.00024999,4]
[346040218,1734651051855,-500.0,0.00024999,4]
[346040219,1734651051864,-500.0,0.00024999,4]
[346040220,1734651051873,-556.8,0.00024999,4]
[346040221,1734651051883,-500.0,0.00024999,4]
[346040222,1734651051892,-1107.71,0.00024999,4]
[346040223,1734651051902,-556.8,0.00024999,4]
[346040224,1734651051911,-500.0,0.00024999,4]
[346040225,1734651051921,-1107.71,0.00024999,4]
[346040226,1734651051931,-556.8,0.00024999,4]
[346040227,1734651051942,-500.0,0.00024999,4]
[346040228,1734651051951,-1107.71,0.00024999,4]
[346040229,1734651051960,-556.8,0.00024999,4]
[346040230,1734651051969,-500.0,0.00024999,4]
[346040231,1734651051979,-1107.71,0.00024999,4]
[346040232,1734651051988,-556.8,0.00024999,4]
[346040233,1734651051998,-500.0,0.00024999,4]
[346040234,1734651052007,-1107.71,0.00024999,4]
[346040235,1734651052016,-404.5,0.00024999,4]
[346040236,1734651052025,-556.8,0.00024999,4]
[346040237,1734651052036,-500.0,0.00024999,4]
[346040238,1734651052045,-1107.71,0.00024999,4]
[346040239,1734651052055,-556.8,0.00024999,4]
[346040240,1734651052065,-500.0,0.00024999,4]
[346040241,1734651052074,-1107.71,0.00024999,4]
[346040242,1734651052083,-556.8,0.00024999,4]
[346040243,1734651052092,-500.0,0.00024999,4]
[346040244,1734651052103,-1107.71,0.00024999,4]
[346040245,1734651052113,-556.8,0.00024999,4]
[346040246,1734651052123,-500.0,0.00024999,4]
[346040247,1734651052133,-1107.71,0.00024999,4]
[346040248,1734651052142,-556.8,0.00024999,4]
[346040249,1734651052151,-500.0,0.00024999,4]
[346040250,1734651052160,-1107.71,0.00024999,4]
[346040251,1734651052169,-556.8,0.00024999,4]
[346040252,1734651052178,-500.0,0.00024999,4]
[346040253,1734651052188,-1107.77,0.00024999,4]
[346040254,1734651052198,-556.8,0.00024999,4]
[346040255,1734651052207,-500.0,0.00024999,4]
[346040256,1734651052216,-556.8,0.00024999,4]
[346040257,1734651052225,-500.0,0.00024999,4]
[346040258,1734651052234,-556.8,0.00024999,4]
[346040259,1734651052243,-556.8,0.00024999,4]
[346040260,1734651052253,-500.0,0.00024999,4]
[346040261,1734651052263,-556.8,0.00024999,4]
[346040262,1734651052273,-275.52299032,0.00024999,4]
[346040263,1734651052283,-556.8,0.00024999,4]
[346040264,1734651052293,-556.8,0.00024999,4]
[346040265,1734651052304,-556.8,0.00024999,4]
[346040266,1734651052313,-556.8,0.00024999,4]
[346040267,1734651052323,-500.0,0.00024999,4]
[346040268,1734651052333,-556.8,0.00024999,4]
[346040269,1734651052342,-500.0,0.00024999,4]
[346040270,1734651052353,-500.0,0.00024999,4]
[346040271,1734651052362,-556.8,0.00024999,4]
[346040272,1734651052372,-500.0,0.00024999,4]
[346040273,1734651052383,-500.0,0.00024999,4]
[346040274,1734651052392,-557.01,0.00024999,4]
[346040275,1734651052401,-500.0,0.00024999,4]
[346040276,1734651052410,-531.20430061,0.00024999,4]
[346040277,1734651052419,-1189.77,0.00024999,4]
[346040278,1734651052428,-1189.77,0.00024999,4]
[346040279,1734651052438,-1189.77,0.00024999,4]
[346040280,1734651052447,-1189.77,0.00024999,4]
[346040281,1734651052456,-1189.77,0.00024999,4]
[346040282,1734651052465,-1189.77,0.00024999,4]
[346040283,1734651052474,-1189.77,0.00024999,4]
[346040284,1734651052483,-1189.77,0.00024999,4]
[346040285,1734651052492,-1189.77,0.00024999,4]
[346040286,1734651052501,-1189.77,0.00024999,4]
[346040287,1734651052511,-1189.77,0.00024999,4]
[346040288,1734651052520,-1189.77,0.00024999,4]
[346040289,1734651052529,-500.0,0.00024999,4]
[346040290,1734651052539,-1189.77,0.00024999,4]
[346040291,1734651052548,-500.0,0.00024999,4]
[346040292,1734651052557,-1189.77,0.00024999,4]
[346040293,1734651052566,-500.0,0.00024999,4]
[346040294,1734651052576,-505.67359613,0.00024999,4]
[346040295,1734651052586,-1189.77,0.00024999,4]
[346040296,1734651052595,-1189.77,0.00024999,4]
[346040297,1734651052605,-1189.77,0.00024999,4]
[346040298,1734651052614,-1189.77,0.00024999,4]
[346040299,1734651052624,-1189.77,0.00024999,4]
[346040300,1734651052633,-1189.77,0.00024999,4]
[346040301,1734651052642,-1189.77,0.00024999,4]
[346040302,1734651052651,-1189.77,0.00024999,4]
[346040303,1734651052660,-1189.85,0.00024999,4]
[346040304,1734651052669,-582.89,0.00024999,4]
[346040305,1734651052678,-582.89,0.00024999,4]
[346040306,1734651052687,-582.89,0.00024999,4]
[346040307,1734651052696,-582.89,0.00024999,4]
[346040308,1734651052705,-582.89,0.00024999,4]
[346040309,1734651052715,-582.89,0.00024999,4]
[346040310,1734651052724,-582.89,0.00024999,4]
[346040311,1734651052733,-582.89,0.00024999,4]
[346040312,1734651052742,-582.89,0.00024999,4]
[346040313,1734651052751,-582.89,0.00024999,4]
[346040314,1734651052759,-582.89,0.00024999,4]
[346040315,1734651052768,-582.89,0.00024999,4]
[346040316,1734651052780,-582.89,0.00024999,4]
[346040317,1734651052789,-582.89,0.00024999,4]
[346040318,1734651052798,-582.89,0.00024999,4]
[346040319,1734651052807,-582.89,0.00024999,4]
[346040320,1734651052816,-582.89,0.00024999,4]
[346040321,1734651052825,-582.89,0.00024999,4]
[346040322,1734651052834,-582.89,0.00024999,4]
[346040323,1734651052971,-582.89,0.00024999,4]
[346040324,1734651052981,-582.89,0.00024999,4]
[346040325,1734651052990,-582.89,0.00024999,4]
[346040326,1734651053001,-583.10816389,0.00024999,4]
[346040327,1734651053010,-500.0,0.00024999,4]
[346040328,1734651053021,-267.3,0.00024999,4]
[346040329,1734651053031,-658.67,0.00024999,4]
[346040330,1734651053041,-658.67,0.00024999,4]
[346040331,1734651053051,-658.67,0.00024999,4]
[346040332,1734651053061,-658.67,0.00024999,4]
[346040333,1734651053071,-658.67,0.00024999,4]
[346040334,1734651053083,-658.67,0.00024999,4]
[346040335,1734651053092,-658.67,0.00024999,4]
[346040336,1734651053102,-658.67,0.00024999,4]
[346040337,1734651053111,-658.67,0.00024999,4]
[346040338,1734651053120,-658.67,0.00024999,4]
[346040339,1734651053130,-500.0,0.00024999,4]
[346040340,1734651053139,-500.0,0.00024999,4]
[346040341,1734651053159,-500.0,0.00024999,4]
[346040342,1734651053168,-500.0,0.00024999,4]
[346040343,1734651053178,-500.0,0.00024999,4]
[346040344,1734651053187,-500.0,0.00024999,4]
[346040345,1734651053197,-500.0,0.00024999,4]
[346040346,1734651053208,-658.67,0.00024999,4]
[346040347,1734651053218,-500.0,0.00024999,4]
[346040348,1734651053228,-658.67,0.00024999,4]
[346040349,1734651053238,-500.0,0.00024999,4]
[346040350,1734651053250,-500.0,0.00024999,4]
[346040351,1734651053260,-658.67,0.00024999,4]
[346040352,1734651053269,-500.0,0.00024999,4]
[346040353,1734651053279,-658.67,0.00024999,4]
[346040354,1734651053289,-500.0,0.00024999,4]
[346040355,1734651053298,-658.67,0.00024999,4]
[346040356,1734651053308,-500.0,0.00024999,4]
[346040357,1734651053317,-658.67,0.00024999,4]
[346040358,1734651053327,-500.0,0.00024999,4]
[346040359,1734651053336,-658.67,0.00024999,4]
[346040360,1734651053346,-500.0,0.00024999,4]
[346040361,1734651053355,-658.67,0.00024999,4]
[346040362,1734651053365,-500.0,0.00024999,4]
[346040363,1734651053374,-658.67,0.00024999,4]
[346040364,1734651053383,-500.0,0.00024999,4]
[346040365,1734651053393,-500.0,0.00024999,4]
[346040366,1734651053403,-658.67,0.00024999,4]
[346040367,1734651053412,-658.67,0.00024999,4]
[346040368,1734651053422,-658.67,0.00024999,4]
[346040369,1734651053431,-500.0,0.00024999,4]
[346040370,1734651053441,-658.83417442,0.00024999,4]
[346040371,1734651053450,-500.0,0.00024999,4]
[346040372,1734651053459,-500.0,0.00024999,4]
[346040373,1734651053468,-500.0,0.00024999,4]
[346040374,1734651053478,-500.0,0.00024999,4]
[346040375,1734651053487,-500.0,0.00024999,4]
[346040376,1734651053496,-500.0,0.00024999,4]
[346040377,1734651053505,-500.0,0.00024999,4]
[346040378,1734651053515,-500.0,0.00024999,4]
[346040379,1734651053524,-500.0,0.00024999,4]
[346040380,1734651053534,-500.0,0.00024999,4]
[346040381,1734651053543,-277.1,0.00024999,4]
[346040382,1734651053553,-500.0,0.00024999,4]
[346040383,1734651053563,-500.0,0.00024999,4]
[346040384,1734651053572,-500.0,0.00024999,4]
[346040385,1734651053581,-500.0,0.00024999,4]
[346040386,1734651053591,-500.0,0.00024999,4]
[346040387,1734651053600,-500.0,0.00024999,4]
[346040388,1734651053609,-500.0,0.00024999,4]
[346040389,1734651053619,-500.0,0.00024999,4]
[346040390,1734651053628,-500.0,0.00024999,4]
[346040391,1734651053638,-500.0,0.00024999,4]
[346040392,1734651053664,-500.0,0.00024999,4]
[346040393,1734651053673,-500.0,0.00024999,4]
[346040394,1734651053683,-500.0,0.00024999,4]
[346040395,1734651053693,-341.30525494,0.00024999,4]
[346040396,1734651053703,-622.68,0.00024999,4]
[346040397,1734651053713,-500.0,0.00024999,4]
[346040398,1734651053723,-622.68,0.00024999,4]
[346040399,1734651053733,-500.0,0.00024999,4]
[346040400,1734651053743,-500.0,0.00024999,4]
[346040401,1734651053753,-622.68,0.00024999,4]
[346040402,1734651053763,-500.0,0.00024999,4]
[346040403,1734651053773,-622.68,0.00024999,4]
[346040404,1734651053784,-469.8,0.00024999,4]
[346040405,1734651053795,-622.68,0.00024999,4]
[346040406,1734651053805,-500.0,0.00024999,4]
[346040407,1734651053815,-622.68,0.00024999,4]
[346040408,1734651053824,-500.0,0.00024999,4]
[346040409,1734651053834,-622.68,0.00024999,4]
[346040410,1734651053844,-500.0,0.00024999,4]
[346040411,1734651053855,-622.68,0.00024999,4]
[346040412,1734651053865,-500.0,0.00024999,4]
[346040413,1734651053875,-622.68,0.00024999,4]
[346040414,1734651053885,-500.0,0.00024999,4]
[346040415,1734651053894,-622.68,0.00024999,4]
[346040416,1734651053904,-636.51,0.00024999,4]
[346040417,1734651053914,-622.68,0.00024999,4]
[346040418,1734651053923,-622.68,0.00024999,4]
[346040419,1734651053933,-622.68,0.00024999,4]
[346040420,1734651053942,-622.68,0.00024999,4]
[346040421,1734651053951,-622.68,0.00024999,4]
[346040422,1734651053961,-622.68,0.00024999,4]
[346040423,1734651053970,-622.68,0.00024999,4]
[346040424,1734651053980,-622.68,0.00024999,4]
[346040425,1734651053990,-680.0,0.00025,2]
[346040426,1734651054001,-3521.89485867,0.00025,2]
[346040427,1734651054010,-64483.4003605,0.00025,3]
[346040428,1734651054020,-2496281.20515835,0.00025,2]
[346040429,1734651054029,-427.04338705,0.00025,2]
[346040430,1734651054039,-3508595.02676759,0.00025,2]
[346040431,1734651054049,-15659.77,0.00025,30]
[346040432,1734651054058,-84167.70401945,0.00025,2]
[346040433,1734651054067,-3029.52,0.00025,5]
[346040434,1734651054077,-1912087.43944052,0.00025,2]
[346040435,1734651054086,-1249018.33453691,0.00025,2]
[346040436,1734651054095,-1337905.8168691,0.00025,2]
[346040437,1734651054105,-241766.9283447,0.00025,2]
[346040438,1734651054294,-282.52999028,0.00023999,4]
[346040439,1734651054306,-264.69324935,0.00023999,4]
[346040440,1734651054315,-622.68,0.00024999,4]
[346040441,1734651054325,-622.77199792,0.00024999,4]
[346040442,1734651054334,-34558.21767633,0.00025,2]
[346040443,1734651054349,-150.0,0.00024699,2]
[346040444,1734651054359,-3076.11194354,0.00025,2]
[346040445,1734651054462,-500.0,0.00024708,4]
[346040446,1734651054471,-500.0,0.00024999,4]
[346040447,1734651054481,-4622.5208928,0.00025,2]
[346040448,1734651054501,-500.0,0.00024708,4]
[346040449,1734651054511,-500.0,0.00024708,4]
[346040450,1734651054521,-6303.125,0.00025,2]
[346040451,1734651054533,-349.99999913,0.00025,2]
[346040452,1734651054544,-1056.06257889,0.00025,2]
[346040453,1734651054556,-2576.12196656,0.00025,2]
[346040454,1734651054582,-632.316,0.00024699,2]
[346040455,1734651054592,-500.0,0.00024999,4]
[346040456,1734651054601,-500.0,0.00024999,4]
[346040457,1734651054611,-10221.68399999,0.00025,2]
[346040458,1734651054622,-1126.83831642,0.00025,2]
[346040459,1734651054634,-1116.78320645,0.00025,2]
[346040460,1734651175262,162.35,0.00010137,2]
[346040463,1734652097426,157.6,0.00010137,2]
[346040465,1734652148145,-500.0,0.00021164,2]
[346040466,1734652148166,-480.0,0.00021164,2]
[346040470,1734652231985,-20.0,0.00021164,2]
[346040471,1734652231994,-438.27,0.0002173,2]
[346040472,1734652232003,-104.96994461,0.00022488,4]
[346040473,1734652232015,-126.77990333,0.00022488,4]
[346040474,1734652232024,-180.86,0.00023281,2]
[346040475,1734652232033,-1027.09,0.0002332,2]
[346040476,1734652232043,-5127.86,0.00023331,2]
[346040477,1734652232052,-219.75,0.0002338,2]
[346040478,1734652232061,-150.0,0.00023397,2]
[346040479,1734652232070,-200.0,0.000234,2]
[346040480,1734652232080,-2751.0,0.00023401,2]
[346040481,1734652232089,-500.0,0.00023415,7]
[346040482,1734652232098,-250.0,0.00023428,2]
[346040483,1734652232108,-593.75,0.00023438,2]
[346040484,1734652232118,-5286.29,0.00023453,2]
[346040485,1734652232130,-1000.0,0.00023459,2]
[346040486,1734652232139,-170.03,0.00023475,2]
[346040487,1734652232148,-250.0,0.00023512,2]
[346040488,1734652232157,-3274.6671691,0.00023527,2]
[346040489,1734652232334,-492.18846894,0.00023527,2]
[346040490,1734652232347,-166.04436196,0.00023527,2]
[346040491,1734652232356,-155.95,0.00023672,30]
[346040492,1734652232365,-500.0,0.00023689,7]
[346040493,1734652232375,-415.785,0.0002375,2]
[346040494,1734652232384,-181.09501304,0.00023836,2]
[346040495,1734652232393,-747.95540077,0.000239,2]
[346040496,1734652232404,-512.40316024,0.000239,2]
[346040497,1734652232418,-527.04664218,0.000239,2]
[346040498,1734652232433,-1613.42979681,0.000239,2]
[346040499,1734652232444,-12.67578919,0.00023944,2]
[346040500,1734652232455,-139.14421081,0.00023944,2]
[346040501,1734652232464,-151.82,0.00023959,2]
[346040502,1734652232473,-64.99422572,0.0002396,2]
[346040503,1734652232484,-523.04615889,0.0002396,2]
[346040504,1734652232498,-1.58846506,0.0002396,2]
[346040505,1734652232507,-151.82,0.00023974,2]
[346040506,1734652232517,-151.82,0.00023989,2]
[346040507,1734652232526,-245.76861195,0.00023994,2]
[346040509,1734652232538,-192.50138805,0.00023994,2]
[346040511,1734652232547,-200.89382915,0.00023994,5]
[346040531,1734652237989,-58.79417085,0.00023994,5]
[346040532,1734652237999,-575.24,0.00023999,4]
[346040533,1734652238008,-276.15,0.00023999,4]
[346040534,1734652238017,-264.73,0.00023999,4]
[346040535,1734652238027,-500.0,0.00023999,4]
[346040536,1734652238036,-500.0,0.00023999,4]
[346040537,1734652238045,-530.91,0.00023999,4]
[346040538,1734652238055,-566.36,0.00023999,4]
[346040539,1734652238064,-500.0,0.00023999,4]
[346040540,1734652238074,-500.0,0.00023999,4]
[346040541,1734652238083,-399.23,0.00023999,4]
[346040542,1734652238091,-500.0,0.00023999,4]
[346040543,1734652238101,-265.58,0.00023999,4]
[346040544,1734652238110,-500.0,0.00023999,4]
[346040545,1734652238120,-273.49,0.00023999,4]
[346040546,1734652238134,-347.2,0.00023999,4]
[346040547,1734652238144,-235.12,0.00023999,4]
[346040548,1734652238153,-549.59,0.00023999,4]
[346040549,1734652238162,-500.0,0.00023999,4]
[346040550,1734652238173,-520.1,0.00023999,4]
[346040551,1734652238183,-500.0,0.00023999,4]
[346040552,1734652238192,-500.0,0.00023999,4]
[346040553,1734652238202,-462.43,0.00023999,4]
[346040554,1734652238211,-500.0,0.00023999,4]
[346040555,1734652238221,-500.0,0.00023999,4]
[346040556,1734652238232,-1000.0,0.00023999,5]
[346040557,1734652238241,-1000.0,0.00023999,5]
[346040558,1734652238251,-500.0,0.00023999,4]
[346040559,1734652238260,-500.0,0.00023999,4]
[346040560,1734652238269,-500.0,0.00023999,4]
[346040561,1734652238279,-500.0,0.00023999,4]
[346040562,1734652238288,-500.0,0.00023999,4]
[346040563,1734652238298,-500.0,0.00023999,4]
[346040564,1734652238307,-500.0,0.00023999,4]
[346040565,1734652238316,-500.0,0.00023999,4]
[346040566,1734652238325,-500.0,0.00023999,4]
[346040567,1734652238335,-485.1,0.00023999,4]
[346040568,1734652238344,-500.0,0.00023999,4]
[346040569,1734652238353,-500.0,0.00023999,4]
[346040570,1734652238362,-500.0,0.00023999,4]
[346040571,1734652238372,-412.61,0.00023999,4]
[346040572,1734652238381,-500.0,0.00023999,4]
[346040573,1734652238391,-263.03,0.00023999,4]
[346040574,1734652238401,-500.0,0.00023999,4]
[346040575,1734652238410,-500.0,0.00023999,4]
[346040576,1734652238419,-222.11,0.00023999,2]
[346040577,1734652238429,-269.51,0.00023999,4]
[346040578,1734652238439,-500.0,0.00023999,4]
[346040579,1734652238450,-500.0,0.00023999,4]
[346040580,1734652238461,-500.0,0.00023999,4]
[346040581,1734652238469,-514.09,0.00023999,4]
[346040582,1734652238478,-500.0,0.00023999,4]
[346040583,1734652238488,-500.0,0.00023999,4]
[346040584,1734652238497,-500.0,0.00023999,4]
[346040585,1734652238506,-500.0,0.00023999,4]
[346040586,1734652238515,-500.0,0.00023999,4]
[346040587,1734652238525,-500.0,0.00023999,4]
[346040588,1734652238534,-500.0,0.00023999,4]
[346040589,1734652238543,-500.0,0.00023999,4]
[346040590,1734652238553,-500.0,0.00023999,4]
[346040591,1734652238562,-231.97,0.00023999,4]
[346040592,1734652238572,-167.65019066,0.00023999,4]
[346040593,1734652238581,-500.0,0.00023999,4]
[346040594,1734652238590,-500.0,0.00023999,4]
[346040595,1734652238599,-618.45,0.00023999,4]
[346040596,1734652238609,-500.0,0.00023999,4]
[346040597,1734652238618,-500.0,0.00023999,4]
[346040598,1734652238627,-500.0,0.00023999,4]
[346040599,1734652238636,-500.0,0.00023999,4]
[346040600,1734652238645,-500.0,0.00023999,4]
[346040601,1734652238654,-500.0,0.00023999,4]
[346040602,1734652238663,-467.55,0.00023999,4]
[346040603,1734652238672,-500.0,0.00023999,4]
[346040604,1734652238682,-500.0,0.00023999,4]
[346040605,1734652238691,-500.0,0.00023999,4]
[346040606,1734652238700,-500.0,0.00023999,4]
[346040607,1734652238709,-500.0,0.00023999,4]
[346040608,1734652238718,-500.0,0.00023999,4]
[346040609,1734652238730,-500.0,0.00023999,4]
[346040610,1734652238740,-448.15,0.00023999,4]
[346040611,1734652238749,-249.64,0.00023999,4]
[346040612,1734652238759,-151.82,0.00024004,2]
[346040613,1734652238768,-2020.0,0.00024015,2]
[346040614,1734652238777,-151.82,0.00024019,2]
[346040615,1734652238786,-151.82,0.00024034,2]
[346040616,1734652238795,-151.82,0.00024049,2]
[346040617,1734652238805,-151.82,0.00024064,2]
[346040618,1734652238814,-181.09501304,0.00024137,2]
[346040619,1734652238823,-181.09501304,0.00024438,2]
[346040620,1734652238833,-180.86,0.00024445,2]
[346040621,1734652238842,-1106.57467389,0.000245,60]
[346040622,1734652238851,-2061.83447597,0.00024625,2]
[346040623,1734652238860,-210.0,0.0002463,2]
[346040624,1734652238870,-6914.96,0.00024658,5]
[346040625,1734652238879,-150.0,0.00024658,2]
[346040626,1734652238888,-500.0,0.00024698,4]
[346040627,1734652238898,-632.0,0.00024699,2]
[346040628,1734652238907,-1895.0,0.00024699,2]
[346040629,1734652238916,-1253.0,0.00024699,2]
[346040630,1734652238926,-817.0,0.00024699,2]
[346040631,1734652238938,-3764.0,0.00024699,2]
[346040632,1734652238947,-929.0,0.00024699,2]
[346040633,1734652238956,-2127.288,0.00024699,2]
[346040634,1734652238965,-150.0,0.00024699,2]
[346040635,1734652238974,-150.0,0.00024699,2]
[346040636,1734652238985,-1283.0,0.000247,2]
[346040637,1734652238994,-253.39,0.00024749,2]
[346040638,1734652239003,-150.0,0.00024787,2]
[346040639,1734652239012,-313.37941512,0.00024799,4]
[346040640,1734652239022,-4728.07522236,0.0002488,2]
[346040641,1734652239031,-4728.07522233,0.00024882,2]
[346040642,1734652239040,-4728.07522233,0.00024884,2]
[346040643,1734652239051,-4728.07522233,0.00024887,2]
[346040644,1734652239060,-4728.07522233,0.00024889,2]
[346040645,1734652239069,-4728.07522233,0.00024891,2]
[346040646,1734652239079,-301.63,0.000249,2]
[346040647,1734652239088,-5965.84050467,0.000249,2]
[346040648,1734652239097,-5800.0,0.000249,2]
[346040649,1734652239107,-772.10836869,0.000249,2]
[346040650,1734652239116,-1327.6752663,0.000249,2]
[346040651,1734652239127,-9003.14654436,0.000249,2]
[346040652,1734652239137,-263.98,0.000249,31]
[346040653,1734652239147,-263.98,0.000249,31]
[346040654,1734652239156,-263.98,0.000249,31]
[346040655,1734652239167,-263.98,0.000249,31]
[346040656,1734652239177,-263.98,0.000249,31]